bitfinex-derivatives/quotes_SOLF0:USTF0_20250505
["timestamp","ask_amount","ask_price","bid_price","bid_amount"]
[1746411209197,4.1706,143.49,143.36,28.16]
[1746411209397,4.1706,143.49,143.37,4.164]
[1746411209598,4.1706,143.49,143.4,6.9728]
[1746411209797,6.9712,143.44,143.4,28.14]
[1746411211301,6.9717,143.43,143.4,28.14]
[1746411212797,6.9723,143.42,143.4,28.14]
[1746411212995,28.14,143.46,143.4,28.14]
[1746411213198,28.14,143.46,143.4,35.1131]
[1746411213400,6.9716,143.44,143.4,35.1131]
[1746411213690,28.14,143.46,143.4,35.1131]
[1746411214406,6.9715,143.44,143.4,35.1131]
[1746411215096,6.9715,143.44,143.4,28.14]
[1746411215403,28.14,143.46,143.4,28.14]
[1746411215607,28.14,143.46,143.4,35.1129]
[1746411216303,6.9716,143.43,143.4,35.1129]
[1746411216902,6.9713,143.44,143.4,35.1129]
[1746411217305,6.9717,143.43,143.4,28.14]
[1746411218205,6.9717,143.43,143.4,35.113]
[1746411218508,6.9713,143.44,143.4,35.113]
[1746411219306,28.14,143.46,143.42,6.972]
[1746411219307,6.9708,143.45,143.42,6.972]
[1746411219605,32.3106,143.49,143.42,6.972]
[1746411220007,32.3106,143.49,143.4,28.14]
[1746411220610,6.9694,143.48,143.44,6.971]
[1746411220809,4.1706,143.49,143.4,28.14]
[1746411221214,2.067,143.49,143.4,28.14]
[1746411221814,2.067,143.49,143.41,8.58251564]
[1746411222618,6.97,143.47,143.43,6.9713]
[1746411223218,2.067,143.49,143.44,6.9709]
[1746411223519,28.14,143.52,143.44,28.14]
[1746411223707,2.0754,143.54,143.44,28.14]
[1746411224818,6.9686,143.5,143.46,6.9701]
[1746411225017,1.39382535,143.49,143.46,6.9701]
[1746411225622,1.39382535,143.49,143.47,6.9697]
[1746411225813,1.39382535,143.49,143.44,28.14]
[1746411226521,1.39382535,143.49,143.46,6.9699]
[1746411227120,1.39382535,143.49,143.47,6.9696]
[1746411227321,1.39382535,143.49,143.45,2.1716]
[1746411227514,1.39382535,143.49,143.46,2.0284]
[1746411227821,1.39382535,143.49,143.48,6.9692]
[1746411228615,1.39382535,143.49,143.48,35.0892]
[1746411232128,1.39382535,143.49,143.48,28.12]
[1746411234832,1.39382535,143.49,143.48,35.0892]
[1746411235931,1.39382535,143.49,143.48,28.12]
[1746411236830,1.39382535,143.49,143.48,35.0892]
[1746411238433,1.39382535,143.49,143.48,28.12]
[1746411239333,1.39382535,143.49,143.45,28.08]
[1746411239835,6.9692,143.48,143.45,28.08]
[1746411240035,1.39401965,143.47,143.45,28.08]
[1746411240230,1.39401965,143.47,143.43,5.35297677]
[1746411240431,6.9705,143.46,143.43,12.32447677]
[1746411240628,1.39421401,143.45,143.43,12.32447677]
[1746411241539,1.39421401,143.45,143.44,6.9712]
[1746411241723,1.39421401,143.45,143.43,5.35297677]
[1746411242034,1.39382535,143.49,143.48,6.9692]
[1746411243337,2.0754,143.54,143.5,6.9678]
[1746411243533,2.1537,143.55,143.47,33.43297677]
[1746411244634,30.0945,143.57,143.5,5.35297677]
[1746411244840,28.08,143.57,143.51,28.08]
[1746411245133,6.9656,143.56,143.52,6.967]
[1746411245338,32.1322,143.6,143.51,28.08]
[1746411246538,6.9673,143.52,143.51,28.08]
[1746411246733,28.08,143.56,143.48,28.08]
[1746411246934,30.2562,143.55,143.48,28.08]
[1746411247231,6.9667,143.54,143.5,6.968]
[1746411247428,6.9667,143.54,143.48,28.08]
[1746411247633,6.9667,143.54,143.5,6.9678]
[1746411248840,6.9667,143.54,143.51,6.9677]
[1746411249239,6.9659,143.55,143.51,6.9677]
[1746411251245,6.9655,143.56,143.52,6.967]
[1746411251548,1.39324277,143.55,143.52,6.967]
[1746411252151,1.39324277,143.55,143.48,8.56363333]
[1746411252346,1.39324277,143.55,143.49,28.08]
[1746411253342,1.39324277,143.55,143.54,6.9663]
[1746411253548,4.277e-05,143.55,143.54,6.9663]
[1746411253749,32.1452,143.64,143.54,8.56363333]
[1746411253941,2.0605,143.66,143.57,8.56363333]
[1746411254248,2.0605,143.66,143.58,28.08]
[1746411254450,9.0213,143.66,143.61,6.9628]
[1746411254641,9.0213,143.66,143.58,28.08]
[1746411255054,2.0605,143.66,143.58,30.1184]
[1746411255242,2.0605,143.66,143.58,28.08]
[1746411255741,6.9618,143.64,143.58,28.08]
[1746411255950,2.0605,143.66,143.58,28.08]
[1746411256153,2.0605,143.66,143.55,28.08]
[1746411256553,28.08,143.68,143.57,8.56363333]
[1746411256742,30.2559,143.68,143.57,8.56363333]
[1746411257551,30.2559,143.68,143.55,28.08]
[1746411257743,2.97727499,143.67,143.55,28.08]
[1746411257943,30.2559,143.68,143.55,28.08]
[1746411258142,6.9632,143.61,143.55,28.08]
[1746411258649,30.2559,143.68,143.55,28.08]
[1746411258650,6.9628,143.62,143.55,28.08]
[1746411259348,6.9621,143.63,143.55,28.08]
[1746411259849,6.9621,143.63,143.59,6.9638]
[1746411260050,6.9618,143.64,143.55,28.08]
[1746411260350,6.9618,143.64,143.59,6.9634]
[1746411260547,6.9618,143.64,143.59,28.06]
[1746411261249,30.2559,143.68,143.59,28.06]
[1746411261450,2.97614478,143.67,143.56,28.06]
[1746411261653,30.2559,143.68,143.56,28.06]
[1746411261853,2.97610615,143.67,143.56,28.06]
[1746411262150,30.2559,143.68,143.56,28.06]
[1746411262646,30.2559,143.68,143.57,8.56363333]
[1746411263153,2.1759,143.68,143.6,8.56363333]
[1746411263354,6.9592,143.69,143.65,6.9609]
[1746411263755,6.9592,143.69,143.61,30.1591]
[1746411264255,6.9592,143.69,143.65,6.961]
[1746411264656,28.06,143.71,143.61,30.1591]
[1746411264857,2.0119,143.7,143.61,28.06]
[1746411265359,6.9603,143.67,143.61,28.06]
[1746411265655,2.0803,143.69,143.61,28.06]
[1746411265952,58.56210721,143.82,143.68,17.06806674]
[1746411266153,58.56210721,143.82,143.79,8.53403337]
[1746411266359,58.56210721,143.82,143.79,6.9541]
[1746411266753,58.56210721,143.82,143.78,28.0]
[1746411267359,58.56210721,143.82,143.74,28.0]
[1746411267563,6.3254,143.81,143.72,28.0]
[1746411267863,6.3254,143.81,143.69,28.0]
[1746411268160,6.9542,143.79,143.7,6.9585]
[1746411268962,28.0,143.8,143.69,8.53426535]
[1746411269162,28.0,143.8,143.7,28.0]
[1746411269662,6.9557,143.76,143.7,28.0]
[1746411269864,28.0,143.8,143.7,28.0]
[1746411270066,28.0,143.8,143.69,28.0]
[1746411270568,6.9564,143.75,143.69,28.0]
[1746411270971,28.0,143.76,143.69,28.0]
[1746411271472,6.957,143.74,143.69,28.0]
[1746411271871,28.0,143.76,143.69,28.0]
[1746411272173,6.9573,143.73,143.69,28.0]
[1746411272367,28.0,143.76,143.69,28.0]
[1746411272568,2.0642,143.75,143.69,28.0]
[1746411272776,6.9574,143.73,143.69,28.0]
[1746411272975,2.0642,143.75,143.69,28.0]
[1746411273376,6.9581,143.71,143.69,28.0]
[1746411273877,4.0158,143.74,143.69,28.0]
[1746411274079,6.9581,143.71,143.69,28.0]
[1746411275075,6.9585,143.7,143.69,28.0]
[1746411275275,4.0158,143.74,143.69,28.0]
[1746411276078,4.0158,143.74,143.66,27.98]
[1746411276679,6.9582,143.71,143.66,34.9404]
[1746411277480,6.9587,143.7,143.66,27.98]
[1746411277877,4.0158,143.74,143.66,27.98]
[1746411278076,6.9576,143.72,143.66,34.9403]
[1746411279280,6.9576,143.72,143.67,6.96]
[1746411279682,6.9572,143.73,143.67,6.96]
[1746411279984,4.0158,143.74,143.67,8.53718885]
[1746411280176,4.0158,143.74,143.69,6.959]
[1746411280377,4.0158,143.74,143.67,8.53718885]
[1746411281584,6.9574,143.73,143.67,8.53718885]
[1746411281884,4.0158,143.74,143.67,8.53718885]
[1746411282685,10.9727,143.74,143.69,6.959]
[1746411283077,4.0158,143.74,143.69,6.959]
[1746411283385,6.9571,143.73,143.69,6.959]
[1746411283586,4.0158,143.74,143.69,6.959]
[1746411285086,6.9575,143.73,143.69,6.959]
[1746411285989,6.9561,143.76,143.7,27.98]
[1746411286688,6.9553,143.77,143.72,6.9571]
[1746411287083,6.9553,143.77,143.7,27.98]
[1746411287291,6.9553,143.77,143.73,6.9568]
[1746411287785,6.9548,143.78,143.73,6.9568]
[1746411288092,27.98,143.79,143.73,6.9568]
[1746411288589,6.9552,143.77,143.71,6.9576]
[1746411289095,6.956,143.76,143.71,6.9576]
[1746411289590,27.98,143.79,143.7,27.98]
[1746411290291,6.9575,143.73,143.7,27.98]
[1746411290590,27.98,143.79,143.67,27.98]
[1746411290789,27.98,143.79,143.67,6.9599]
[1746411290994,27.98,143.79,143.64,27.98]
[1746411291293,27.98,143.79,143.66,8.53718885]
[1746411291493,6.9571,143.73,143.69,6.9587]
[1746411293795,6.9568,143.74,143.7,6.9585]
[1746411293994,27.98,143.79,143.68,27.98]
[1746411294391,6.9562,143.75,143.71,6.9577]
[1746411295297,27.98,143.79,143.68,27.98]
[1746411296197,27.98,143.79,143.69,6.959]
[1746411296696,6.9576,143.73,143.69,6.959]
[1746411298000,27.98,143.79,143.7,6.9585]
[1746411298195,27.98,143.79,143.68,27.98]
[1746411298394,27.98,143.79,143.69,8.53718885]
[1746411298796,6.9566,143.75,143.71,6.9579]
[1746411299900,6.9567,143.74,143.7,6.9584]
[1746411300799,6.9563,143.75,143.71,6.958]
[1746411300999,6.9563,143.75,143.66,8.53718885]
[1746411301000,27.98,143.79,143.72,27.94]
[1746411301298,4.1696,143.81,143.72,27.94]
[1746411301899,6.9541,143.8,143.72,27.94]
[1746411302199,2.1089,143.81,143.72,27.94]
[1746411302401,6.9547,143.79,143.75,6.9558]
[1746411302593,2.1089,143.81,143.72,27.94]
[1746411303101,6.9541,143.8,143.76,6.9556]
[1746411303399,2.1089,143.81,143.72,27.94]
[1746411304094,9.0622,143.81,143.72,27.94]
[1746411304401,2.1089,143.81,143.72,27.94]
[1746411304602,27.94,143.83,143.72,27.94]
[1746411305195,6.953,143.82,143.78,6.9546]
[1746411306900,27.94,143.86,143.77,27.94]
[1746411307099,34.262,143.89,143.77,36.47718885]
[1746411307295,6.9502,143.88,143.77,36.47718885]
[1746411308099,34.262,143.89,143.77,36.47718885]
[1746411308702,34.262,143.89,143.77,8.53718885]
[1746411308902,34.262,143.89,143.78,27.94]
[1746411309104,6.9509,143.86,143.78,27.94]
[1746411309495,6.9506,143.87,143.82,6.9524]
[1746411309696,34.262,143.89,143.82,6.9524]
[1746411309897,34.262,143.89,143.78,27.94]
[1746411310200,6.9518,143.84,143.8,6.9537]
[1746411310401,34.262,143.89,143.78,27.94]
[1746411310601,2.98698033,143.88,143.78,34.8946]
[1746411310801,2.98648698,143.87,143.71,361.0]
[1746411311001,8.53718885,143.88,143.74,27.94]
[1746411311002,2.98635936,143.86,143.74,27.94]
[1746411311207,30.92635936,143.85,143.74,27.94]
[1746411311403,27.94,143.85,143.74,27.94]
[1746411311695,6.322,143.89,143.76,8.53718885]
[1746411311696,27.94,143.88,143.76,8.53718885]
[1746411312404,6.9508,143.86,143.81,6.9528]
[1746411312900,6.9508,143.86,143.8,27.94]
[1746411312901,27.94,143.88,143.8,34.8936]
[1746411313102,27.94,143.88,143.8,27.94]
[1746411313696,6.9528,143.82,143.8,27.94]
[1746411313898,27.94,143.88,143.78,6.9545]
[1746411314106,6.9535,143.81,143.77,34.895]
[1746411314297,27.94,143.88,143.77,27.94]
[1746411314497,2.98411714,143.87,143.77,27.94]
[1746411314706,27.94,143.88,143.77,27.94]
[1746411315008,2.98368504,143.87,143.74,27.94]
[1746411315205,2.98368504,143.87,143.75,6.9558]
[1746411315501,2.98368504,143.87,143.74,27.94]
[1746411315804,6.9537,143.8,143.74,27.94]
[1746411316004,27.94,143.83,143.74,27.94]
[1746411316205,6.9544,143.79,143.75,6.9556]
[1746411316705,6.9547,143.78,143.75,6.9556]
[1746411316905,2.0251,143.81,143.75,6.9556]
[1746411317105,2.0251,143.81,143.76,6.9553]
[1746411317401,6.9543,143.79,143.73,27.94]
[1746411317605,2.0251,143.81,143.73,27.94]
[1746411317805,2.0251,143.81,143.75,6.956]
[1746411318000,6.9543,143.79,143.75,6.956]
[1746411319801,2.0251,143.81,143.73,27.94]
[1746411320309,6.9543,143.79,143.75,6.9558]
[1746411320908,4.1917,143.82,143.74,8.53718885]
[1746411321111,27.94,143.83,143.74,8.53718885]
[1746411321504,6.953,143.82,143.78,6.9543]
[1746411322009,27.94,143.83,143.77,27.94]
[1746411322909,34.8925,143.83,143.79,6.9538]
[1746411323412,6.9528,143.82,143.79,6.9538]
[1746411323708,27.94,143.86,143.79,6.9538]
[1746411323912,6.9518,143.84,143.8,6.9534]
[1746411324103,6.1908,143.87,143.77,36.47718885]
[1746411324304,4.1458,143.87,143.77,36.47718885]
[1746411324504,6.9521,143.84,143.77,36.47718885]
[1746411324814,4.1458,143.87,143.77,36.47718885]
[1746411325108,6.9521,143.84,143.8,6.9537]
[1746411325410,4.1458,143.87,143.8,6.9537]
[1746411325610,4.1458,143.87,143.77,36.47718885]
[1746411325811,4.1458,143.87,143.77,27.94]
[1746411326205,29.9352,143.91,143.77,36.47718885]
[1746411326406,4.1788,143.9,143.77,36.47718885]
[1746411326711,6.9506,143.87,143.83,6.9522]
[1746411327209,4.1788,143.9,143.81,27.88]
[1746411327609,11.52413697,143.89,143.75,27.88]
[1746411327805,64.81558889,144.01,143.85,8.51594216]
[1746411328011,2.0194,143.99,143.88,8.51594216]
[1746411329212,26.63866515,144.0,143.94,6.9465]
[1746411329512,26.63866515,144.0,143.95,27.88]
[1746411330614,2.1594,144.0,143.95,27.88]
[1746411331808,2.1594,144.0,143.92,27.88]
[1746411332013,30.0194,144.0,143.91,27.86]
[1746411332907,30.0194,144.0,143.88,27.86]
[1746411333106,30.0194,144.0,143.86,6.9505]
[1746411333417,6.9483,143.92,143.87,27.86]
[1746411334514,6.9486,143.91,143.87,27.86]
[1746411335315,6.9486,143.91,143.87,34.8103]
[1746411335502,6.9481,143.92,143.87,34.8103]
[1746411335707,6.9481,143.92,143.87,27.86]
[1746411336218,6.9485,143.91,143.87,34.8102]
[1746411337218,4.2759,143.95,143.88,6.9495]
[1746411337413,4.2759,143.95,143.87,27.86]
[1746411337711,4.2759,143.95,143.88,6.9498]
[1746411337915,4.2759,143.95,143.87,27.86]
[1746411338711,27.86,143.99,143.88,8.50831651]
[1746411338916,2.1594,144.0,143.91,8.50831651]
[1746411339114,6.9447,143.99,143.94,6.9468]
[1746411339518,2.1594,144.0,143.92,27.86]
[1746411339819,6.9452,143.98,143.93,6.9471]
[1746411340019,6.9452,143.98,143.92,27.86]
[1746411340221,2.1594,144.0,143.92,27.86]
[1746411340521,2.1594,144.0,143.92,34.8078]
[1746411340823,2.1594,144.0,143.92,27.86]
[1746411341325,2.1594,144.0,143.93,6.9471]
[1746411341624,2.1594,144.0,143.92,27.86]
[1746411342024,6.9454,143.98,143.93,6.9473]
[1746411342323,2.1594,144.0,143.93,6.9473]
[1746411342522,2.1594,144.0,143.92,27.86]
[1746411342725,6.9454,143.98,143.94,6.9466]
[1746411343224,6.9446,143.99,143.92,27.86]
[1746411343422,2.1594,144.0,143.92,27.86]
[1746411343719,9.1038,144.0,143.95,6.946]
[1746411343926,6.9444,144.0,143.96,27.86]
[1746411344423,6.9446,143.99,143.96,27.86]
[1746411345725,6.9446,143.99,143.96,34.806]
[1746411346225,6.9446,143.99,143.96,27.86]
[1746411349229,27.86,144.02,143.96,27.86]
[1746411349531,27.86,144.02,143.93,27.86]
[1746411349926,27.86,144.02,143.93,34.8071]
[1746411350128,27.86,144.02,143.93,27.86]
[1746411350429,6.9458,143.97,143.93,27.86]
[1746411352231,6.9458,143.97,143.94,6.9469]
[1746411353330,6.9452,143.98,143.94,6.9469]
[1746411353525,27.86,144.02,143.93,27.86]
[1746411354226,2.0666,144.01,143.93,27.86]
[1746411354728,6.9467,143.95,143.91,6.9482]
[1746411355330,6.947,143.94,143.91,6.9482]
[1746411356031,6.9479,143.92,143.9,27.86]
[1746411356221,27.84,144.0,143.9,27.86]
[1746411356729,27.84,144.0,143.93,6.9471]
[1746411356933,27.84,144.0,143.9,27.86]
[1746411357225,6.9453,143.98,143.9,27.86]
[1746411357429,27.84,144.0,143.91,8.50831651]
[1746411357731,27.84,144.0,143.96,6.9459]
[1746411358032,27.84,144.0,143.94,27.84]
[1746411358534,6.9446,143.99,143.95,6.9463]
[1746411359034,27.84,144.0,143.94,27.84]
[1746411359235,34.7842,144.0,143.96,6.9457]
[1746411359734,6.9442,144.0,143.96,6.9457]
[1746411359934,6.9442,144.0,143.97,6.9452]
[1746411360834,6.9455,143.98,143.94,27.84]
[1746411361035,2.0666,144.01,143.94,27.84]
[1746411361434,6.9449,143.99,143.95,6.9462]
[1746411361630,2.0666,144.01,143.95,6.9462]
[1746411362031,6.9451,143.98,143.95,6.9462]
[1746411363137,6.9444,144.0,143.94,27.84]
[1746411363329,2.0666,144.01,143.94,27.84]
[1746411363530,6.9433,144.02,143.98,6.9446]
[1746411363738,6.9433,144.02,143.94,36.34831651]
[1746411364030,2.074,144.04,143.94,36.34831651]
[1746411364228,9.0162,144.04,144.01,6.9435]
[1746411365837,9.0162,144.04,144.0,6.9439]
[1746411366039,9.0162,144.04,143.99,27.84]
[1746411366235,2.1652,144.06,144.02,6.9428]
[1746411366428,27.84,144.09,144.02,6.9428]
[1746411367336,27.84,144.09,144.01,6.9434]
[1746411367738,6.942,144.05,144.01,6.9434]
[1746411367933,27.84,144.09,144.02,6.9429]
[1746411369036,27.84,144.09,143.99,27.84]
[1746411369838,6.9404,144.08,143.99,27.84]
[1746411370236,4.2125,144.1,144.0,8.50831651]
[1746411370438,2.0505,144.1,144.03,8.50831651]
[1746411370636,2.0505,144.1,144.04,27.84]
[1746411370939,2.0505,144.1,144.08,6.94]
[1746411371139,2.0505,144.1,144.04,27.84]
[1746411371937,6.941,144.07,144.04,27.84]
[1746411372140,6.941,144.07,144.03,6.9424]
[1746411372341,2.0763,144.09,144.01,27.82]
[1746411373047,6.9403,144.08,144.04,6.9421]
[1746411374342,6.9407,144.07,144.04,6.9421]
[1746411374640,6.9407,144.07,144.03,6.9424]
[1746411374842,6.9413,144.06,144.03,6.9424]
[1746411375143,2.0763,144.09,144.03,6.9424]
[1746411375439,6.941,144.07,144.03,6.9424]
[1746411375643,6.941,144.07,144.04,6.942]
[1746411375946,2.0763,144.09,144.04,6.942]
[1746411376338,6.9404,144.08,144.05,6.9415]
[1746411376540,2.0763,144.09,144.05,6.9415]
[1746411377144,6.9405,144.08,144.04,6.9419]
[1746411377545,6.9405,144.08,144.01,27.82]
[1746411377750,2.0763,144.09,144.01,27.82]
[1746411378246,6.9405,144.08,144.04,6.9419]
[1746411378444,2.0763,144.09,144.01,27.82]
[1746411378749,6.9421,144.05,144.01,27.82]
[1746411378945,2.0763,144.09,144.01,27.82]
[1746411379147,29.8963,144.09,144.01,27.82]
[1746411379349,6.9419,144.05,144.01,34.7636]
[1746411379546,29.8963,144.09,144.01,34.7636]
[1746411379846,6.9421,144.05,144.01,34.7635]
[1746411380250,29.8963,144.09,144.01,34.7635]
[1746411380846,6.942,144.05,144.01,34.7635]
[1746411381948,6.942,144.05,143.96,8.50831651]
[1746411381949,29.8963,144.09,144.0,6.9438]
[1746411382148,29.8963,144.09,144.0,27.82]
[1746411382946,6.9432,144.02,144.0,27.82]
[1746411383543,29.8963,144.09,143.97,27.82]
[1746411383747,27.82,144.08,143.97,27.82]
[1746411384246,6.9441,144.0,143.97,27.82]
[1746411385149,6.9437,144.01,143.97,34.7654]
[1746411385346,4.2915,144.03,143.97,27.82]
[1746411385650,11.2345,144.03,143.99,6.9444]
[1746411385949,4.2915,144.03,143.97,27.82]
[1746411386448,6.9417,144.05,143.97,27.82]
[1746411386849,27.78,144.07,143.97,27.82]
[1746411386850,6.9421,144.04,143.97,27.82]
[1746411387147,27.78,144.07,143.97,27.82]
[1746411388251,11.078,144.08,144.03,6.9423]
[1746411388547,4.1375,144.08,144.03,6.9423]
[1746411388749,11.0778,144.08,144.04,6.9417]
[1746411388949,4.1375,144.08,144.02,27.78]
[1746411389253,6.9407,144.07,144.03,6.9422]
[1746411389654,4.1375,144.08,144.02,27.78]
[1746411389847,6.9413,144.06,144.02,34.7228]
[1746411390451,4.1375,144.08,144.02,27.78]
[1746411391750,6.9417,144.05,144.02,34.7228]
[1746411393150,6.9417,144.05,143.99,8.50831651]
[1746411393151,4.1375,144.08,143.99,8.50831651]
[1746411393358,4.1375,144.08,143.99,36.28831651]
[1746411393654,4.1375,144.08,143.99,27.78]
[1746411393850,4.1375,144.08,143.96,27.78]
[1746411394553,6.9439,144.01,143.97,6.9454]
[1746411395153,6.9441,144.0,143.97,6.9454]
[1746411395852,6.9441,144.0,143.96,27.78]
[1746411396052,6.9441,144.0,143.96,34.7259]
[1746411396651,6.9441,144.0,143.97,6.9454]
[1746411396955,6.9441,144.0,143.96,27.78]
[1746411397455,6.9441,144.0,143.97,6.9454]
[1746411397847,6.9441,144.0,143.96,27.78]
[1746411398052,6.9441,144.0,143.96,34.7256]
[1746411398357,6.9441,144.0,143.96,27.78]
[1746411398657,6.9448,143.99,143.96,27.78]
[1746411398853,2.0954,144.03,143.93,577.86]
[1746411399054,4.1627,144.02,143.93,577.86]
[1746411399252,4.1627,144.02,143.94,6.9468]
[1746411399457,4.1627,144.02,143.93,577.86]
[1746411399657,4.1627,144.02,143.93,27.8]
[1746411399857,6.9456,143.97,143.93,34.7471]
[1746411400452,4.1627,144.02,143.93,27.8]
[1746411401158,27.8,144.1,143.96,8.50831651]
[1746411401351,33.7353,144.1,143.97,27.8]
[1746411402258,6.9408,144.07,144.02,6.943]
[1746411403562,6.9412,144.06,144.02,6.943]
[1746411404161,6.9425,144.04,143.97,27.8]
[1746411404461,6.9425,144.04,143.99,6.9444]
[1746411404659,27.8,144.06,143.99,6.9444]
[1746411404953,27.8,144.06,143.97,34.7453]
[1746411405163,27.8,144.06,143.97,27.8]
[1746411405660,27.8,144.06,143.97,34.7454]
[1746411406954,27.8,144.06,143.98,6.9449]
[1746411407363,6.9429,144.03,143.98,6.9449]
[1746411407560,6.9429,144.03,143.97,27.8]
[1746411408662,6.9429,144.03,143.99,6.9441]
[1746411410464,6.9432,144.02,143.98,6.945]
[1746411410863,27.8,144.06,143.97,27.8]
[1746411411666,6.9429,144.03,143.99,6.9444]
[1746411412264,27.8,144.06,143.97,27.8]
[1746411412661,6.942,144.05,144.01,6.9432]
[1746411412868,27.8,144.06,143.97,27.8]
[1746411413066,27.8,144.06,143.97,36.30831651]
[1746411413562,6.9417,144.05,144.01,6.9432]
[1746411413771,27.8,144.06,144.01,6.9432]
[1746411413957,555.8353,144.1,143.97,36.30831651]
[1746411414263,6.9408,144.07,144.02,6.9428]
[1746411414671,6.9408,144.07,143.97,36.30831651]
[1746411415168,6.9403,144.08,144.03,6.9423]
[1746411415468,6.9403,144.08,144.01,27.8]
[1746411416275,6.9403,144.08,144.04,6.9421]
[1746411418872,6.9407,144.07,144.04,6.9421]
[1746411419764,6.9407,144.07,144.03,6.9425]
[1746411420271,6.9413,144.06,144.03,6.9425]
[1746411420674,27.8,144.09,144.03,6.9425]
[1746411421075,27.8,144.09,144.02,6.9429]
[1746411421273,6.9426,144.03,143.98,27.72]
[1746411421671,27.8,144.09,143.99,6.9444]
[1746411422667,27.8,144.09,143.98,27.72]
[1746411422873,564.34361651,144.1,143.95,27.72]
[1746411423068,27.72,144.09,143.95,27.72]
[1746411423269,6.943,144.03,143.98,6.9447]
[1746411423876,27.72,144.04,143.95,27.72]
[1746411424071,4.1339,144.02,143.95,27.72]
[1746411425977,4.1339,144.02,143.99,6.9442]
[1746411426275,4.1339,144.02,143.95,27.72]
[1746411426575,34.6623,144.04,143.95,27.72]
[1746411427578,34.6623,144.04,144.0,6.9437]
[1746411428578,34.6623,144.04,143.95,27.72]
[1746411428579,27.72,144.04,143.95,27.72]
[1746411428778,27.72,144.07,143.97,8.50831651]
[1746411429076,6.3334,144.09,143.97,8.50831651]
[1746411429281,6.9407,144.07,143.97,8.50831651]
[1746411429684,6.3334,144.09,143.97,8.50831651]
[1746411430179,6.9408,144.07,144.03,6.9423]
[1746411432576,6.9412,144.06,144.03,6.9423]
[1746411432778,6.3334,144.09,144.03,6.9423]
[1746411433078,6.3334,144.09,144.04,6.942]
[1746411433379,6.3334,144.09,144.0,27.72]
[1746411433677,13.2735,144.09,144.0,27.72]
[1746411433878,6.3334,144.09,144.01,27.72]
[1746411434177,6.9402,144.08,144.04,6.9417]
[1746411436477,6.9402,144.08,144.01,27.72]
[1746411436683,6.9408,144.07,144.03,6.9424]
[1746411437182,6.9412,144.06,144.02,6.9429]
[1746411438686,6.9412,144.06,144.03,6.9425]
[1746411438884,6.9406,144.08,144.01,27.72]
[1746411439178,6.9406,144.08,144.04,6.9421]
[1746411439387,6.3334,144.09,144.04,6.9421]
[1746411439583,6.941,144.07,144.04,6.9421]
[1746411439878,27.72,144.1,144.05,6.9415]
[1746411440182,6.9402,144.08,144.05,6.9415]
[1746411440683,6.94,144.09,144.05,6.9415]
[1746411442583,6.9403,144.08,144.05,6.9415]
[1746411443082,6.9403,144.08,144.04,6.9419]
[1746411443587,27.72,144.11,144.01,27.72]
[1746411444685,6.9402,144.08,144.04,6.9421]